[Event "Titled Tuesday Blitz July 4 Late 2023"]
[White "Kovalevsky, Stanislav"]
[Black "Hilary46"]
[WhiteFideId "13508598"]
[WhiteElo "2494"]
[BlackElo "2639"]
[Result "0-1"]
[Round "6"]
[TimeControl "180+2"]
[Date "2023.07.04"]
[WhiteClock "0:00:11"]
[BlackClock "0:00:58"]
[Board "59"]

1. c4 {[%clk 0:03:00]}  Nf6 {[%clk 0:02:58]} 2. Nc3 {[%clk 0:03:00]}  e6 {[%clk 0:02:58]} 3. e4 {[%clk 0:03:00]}  d5 {[%clk 0:02:57]} 4. e5 {[%clk 0:03:00]}  d4 {[%clk 0:02:57]} 5. exf6 {[%clk 0:03:01]}  dxc3 {[%clk 0:02:57]} 6. bxc3 {[%clk 0:03:00]}  Qxf6 {[%clk 0:02:56]} 7. d4 {[%clk 0:03:01]}  e5 {[%clk 0:02:56]} 8. Nf3 {[%clk 0:03:00]}  Nc6 {[%clk 0:02:54]} 9. d5 {[%clk 0:03:00]}  Nb8 {[%clk 0:02:53]} 10. Bg5 {[%clk 0:02:57]}  Qg6 {[%clk 0:02:53]} 11. Be3 {[%clk 0:02:50]}  Nd7 {[%clk 0:02:49]} 12. Qb1 {[%clk 0:02:39]}  Qxb1+ {[%clk 0:02:38]} 13. Rxb1 {[%clk 0:02:39]}  b6 {[%clk 0:02:39]} 14. Be2 {[%clk 0:02:33]}  f6 {[%clk 0:02:34]} 15. O-O {[%clk 0:02:28]}  Bc5 {[%clk 0:02:31]} 16. Bc1 {[%clk 0:02:22]}  Kf7 {[%clk 0:02:29]} 17. Nd2 {[%clk 0:02:17]}  Bb7 {[%clk 0:02:25]} 18. Nb3 {[%clk 0:02:15]}  Be7 {[%clk 0:02:24]} 19. Na5 {[%clk 0:02:08]}  Ba6 {[%clk 0:02:24]} 20. Nc6 {[%clk 0:02:05]}  Bd6 {[%clk 0:02:24]} 21. f4 {[%clk 0:02:01]}  exf4 {[%clk 0:02:24]} 22. Bg4 {[%clk 0:01:58]}  Nc5 {[%clk 0:02:23]} 23. Bxf4 {[%clk 0:01:54]}  Bxc4 {[%clk 0:02:20]} 24. Bxd6 {[%clk 0:01:54]}  cxd6 {[%clk 0:02:18]} 25. Rfe1 {[%clk 0:01:51]}  Bxd5 {[%clk 0:02:10]} 26. Nb4 {[%clk 0:01:27]}  Be6 {[%clk 0:02:06]} 27. Bf3 {[%clk 0:01:21]}  Rae8 {[%clk 0:02:04]} 28. Nc6 {[%clk 0:01:20]}  Bxa2 {[%clk 0:02:02]} 29. Rxe8 {[%clk 0:01:19]}  Rxe8 {[%clk 0:02:03]} 30. Ra1 {[%clk 0:01:18]}  Nd3 {[%clk 0:01:50]} 31. h3 {[%clk 0:01:17]}  Re1+ {[%clk 0:01:48]} 32. Rxe1 {[%clk 0:01:16]}  Nxe1 {[%clk 0:01:49]} 33. Nxa7 {[%clk 0:01:15]}  Nxf3+ {[%clk 0:01:48]} 34. gxf3 {[%clk 0:01:15]}  Ke6 {[%clk 0:01:48]} 35. Nc6 {[%clk 0:01:14]}  Bd5 {[%clk 0:01:42]} 36. Nd4+ {[%clk 0:01:11]}  Ke5 {[%clk 0:01:42]} 37. Kf2 {[%clk 0:01:12]}  Be6 {[%clk 0:01:37]} 38. h4 {[%clk 0:01:10]}  Kd5 {[%clk 0:01:37]} 39. Ke3 {[%clk 0:01:08]}  Bd7 {[%clk 0:01:36]} 40. Ne2 {[%clk 0:01:01]}  g5 {[%clk 0:01:34]} 41. h5 {[%clk 0:00:47]}  h6 {[%clk 0:01:34]} 42. Ng3 {[%clk 0:00:46]}  f5 {[%clk 0:01:28]} 43. f4 {[%clk 0:00:46]}  g4 {[%clk 0:01:23]} 44. Kd3 {[%clk 0:00:45]}  b5 {[%clk 0:01:22]} 45. Ne2 {[%clk 0:00:43]}  Ke6 {[%clk 0:01:20]} 46. Kd4 {[%clk 0:00:35]}  Bc6 {[%clk 0:01:20]} 47. Ng3 {[%clk 0:00:27]}  Be4 {[%clk 0:01:18]} 48. Ne2 {[%clk 0:00:25]}  Kd7 {[%clk 0:01:15]} 49. Ng3 {[%clk 0:00:24]}  Kc6 {[%clk 0:01:14]} 50. Ne2 {[%clk 0:00:21]}  Bd5 {[%clk 0:01:01]} 51. Ng3 {[%clk 0:00:20]}  Be6 {[%clk 0:01:02]} 52. Ne2 {[%clk 0:00:20]}  Kb6 {[%clk 0:01:02]} 53. Ng3 {[%clk 0:00:20]}  Ka5 {[%clk 0:01:03]} 54. Ne2 {[%clk 0:00:20]}  Ka4 {[%clk 0:01:03]} 55. Nc1 {[%clk 0:00:11]}  Ka3 {[%clk 0:01:03]} 56. Ne2 {[%clk 0:00:07]}  Kb3 {[%clk 0:01:01]} 57. Kd3 {[%clk 0:00:07]}  Bc4+ {[%clk 0:01:00]} 58. Kd2 {[%clk 0:00:08]}  Bxe2 {[%clk 0:01:01]} 59. Ke3 {[%clk 0:00:08]}  Kxc3 {[%clk 0:01:00]} 60. Kf2 {[%clk 0:00:07]}  Kd3 {[%clk 0:01:00]} 61. Kg3 {[%clk 0:00:08]}  Ke3 {[%clk 0:00:59]} 62. Kh4 {[%clk 0:00:09]}  b4 {[%clk 0:00:58]} 63. Kg3 {[%clk 0:00:09]}  b3 {[%clk 0:00:58]} 64. Kh4 {[%clk 0:00:10]}  b2 {[%clk 0:00:58]} 65. Kg3 {[%clk 0:00:10]}  b1=Q {[%clk 0:00:58]} 66. Kh4 {[%clk 0:00:11]}  Qe1# {[%clk 0:00:58]} 0-1


[Site "https://www.chess.com"]

[Event "Titled Tuesday Blitz July 4 Late 2023"]
[White "Ganiev, Roman"]
[Black "Horcajuelo Rocamora, Martin"]
[WhiteFideId "4131452"]
[BlackFideId "24573027"]
[WhiteElo "2629"]
[BlackElo "2490"]
[Result "0-1"]
[Round "6"]
[TimeControl "180+2"]
[Date "2023.07.04"]
[WhiteClock "0:00:50"]
[BlackClock "0:00:43"]
[Board "61"]

1. e4 {[%clk 0:03:00]}  e5 {[%clk 0:03:00]} 2. d4 {[%clk 0:03:00]}  exd4 {[%clk 0:02:58]} 3. Qxd4 {[%clk 0:03:01]}  Nc6 {[%clk 0:02:58]} 4. Qe3 {[%clk 0:03:01]}  Nf6 {[%clk 0:02:56]} 5. Nc3 {[%clk 0:03:02]}  Bb4 {[%clk 0:02:57]} 6. Bd2 {[%clk 0:03:02]}  O-O {[%clk 0:02:57]} 7. O-O-O {[%clk 0:03:02]}  Re8 {[%clk 0:02:56]} 8. Qg3 {[%clk 0:03:02]}  Nxe4 {[%clk 0:02:51]} 9. Nxe4 {[%clk 0:03:01]}  Rxe4 {[%clk 0:02:52]} 10. c3 {[%clk 0:03:01]}  Bf8 {[%clk 0:02:32]} 11. Bd3 {[%clk 0:03:01]}  Re8 {[%clk 0:02:32]} 12. Nf3 {[%clk 0:03:01]}  g6 {[%clk 0:02:29]} 13. h4 {[%clk 0:03:01]}  h5 {[%clk 0:02:29]} 14. Ng5 {[%clk 0:02:51]}  Ne5 {[%clk 0:02:25]} 15. Bc2 {[%clk 0:02:51]}  d5 {[%clk 0:02:23]} 16. Rhe1 {[%clk 0:02:49]}  Bg7 {[%clk 0:02:22]} 17. Bf4 {[%clk 0:02:45]}  Qf6 {[%clk 0:02:10]} 18. Rxd5 {[%clk 0:02:38]}  Nd3+ {[%clk 0:02:08]} 19. Bxd3 {[%clk 0:02:13]}  Rxe1+ {[%clk 0:02:07]} 20. Kd2 {[%clk 0:02:14]}  Re8 {[%clk 0:02:04]} 21. Ne4 {[%clk 0:02:14]}  Qe6 {[%clk 0:01:48]} 22. Rg5 {[%clk 0:01:48]}  b6 {[%clk 0:01:45]} 23. f3 {[%clk 0:01:43]}  Bb7 {[%clk 0:01:43]} 24. Kc2 {[%clk 0:01:41]}  Rad8 {[%clk 0:01:35]} 25. Bxc7 {[%clk 0:01:33]}  Rxd3 {[%clk 0:01:32]} 26. Kxd3 {[%clk 0:01:33]}  Bxe4+ {[%clk 0:01:33]} 27. fxe4 {[%clk 0:01:34]}  Qxe4+ {[%clk 0:01:33]} 28. Kd2 {[%clk 0:01:35]}  Qe2+ {[%clk 0:01:32]} 29. Kc1 {[%clk 0:01:32]}  Bh6 {[%clk 0:01:26]} 30. Bf4 {[%clk 0:01:31]}  Bxg5 {[%clk 0:01:25]} 31. Qxg5 {[%clk 0:01:32]}  Qe1+ {[%clk 0:01:16]} 32. Kc2 {[%clk 0:01:32]}  Qe4+ {[%clk 0:01:12]} 33. Kc1 {[%clk 0:01:31]}  Qd3 {[%clk 0:00:54]} 34. Bd2 {[%clk 0:01:28]}  Rd8 {[%clk 0:00:50]} 35. Qf4 {[%clk 0:01:20]}  Rd5 {[%clk 0:00:46]} 36. c4 {[%clk 0:00:57]}  Rf5 {[%clk 0:00:46]} 37. Qb8+ {[%clk 0:00:50]}  Kh7 {[%clk 0:00:43]} 0-1


[Site "https://www.chess.com"]

[Event "Titled Tuesday Blitz July 4 Late 2023"]
[White "Domingo Nunez, Ruben"]
[Black "Remolar Gallen, Jose"]
[WhiteFideId "22245570"]
[BlackFideId "2215187"]
[WhiteElo "2623"]
[BlackElo "2467"]
[Result "1-0"]
[Round "6"]
[TimeControl "180+2"]
[Date "2023.07.04"]
[WhiteClock "0:00:02"]
[BlackClock "0:00:00"]
[Board "62"]

1. Nf3 {[%clk 0:03:00]}  Nf6 {[%clk 0:02:59]} 2. g3 {[%clk 0:02:46]}  g6 {[%clk 0:02:59]} 3. Bg2 {[%clk 0:02:46]}  Bg7 {[%clk 0:03:00]} 4. O-O {[%clk 0:02:47]}  O-O {[%clk 0:03:01]} 5. d4 {[%clk 0:02:48]}  d6 {[%clk 0:03:01]} 6. c4 {[%clk 0:02:48]}  Ne4 {[%clk 0:03:01]} 7. Ng5 {[%clk 0:02:28]}  Nxg5 {[%clk 0:02:57]} 8. Bxg5 {[%clk 0:02:29]}  c5 {[%clk 0:02:52]} 9. Be3 {[%clk 0:02:22]}  Nc6 {[%clk 0:02:47]} 10. d5 {[%clk 0:02:19]}  Na5 {[%clk 0:02:24]} 11. Qc1 {[%clk 0:02:11]}  Qb6 {[%clk 0:02:21]} 12. Nd2 {[%clk 0:01:10]}  Qxb2 {[%clk 0:01:55]} 13. Rb1 {[%clk 0:01:08]}  Qxc1 {[%clk 0:01:50]} 14. Rfxc1 {[%clk 0:01:08]}  b6 {[%clk 0:01:50]} 15. Bg5 {[%clk 0:01:01]}  Re8 {[%clk 0:01:49]} 16. e4 {[%clk 0:01:01]}  Ba6 {[%clk 0:01:40]} 17. Bf1 {[%clk 0:01:02]}  e6 {[%clk 0:01:30]} 18. Bf4 {[%clk 0:00:58]}  Rad8 {[%clk 0:01:28]} 19. h4 {[%clk 0:00:51]}  exd5 {[%clk 0:01:23]} 20. exd5 {[%clk 0:00:52]}  Be5 {[%clk 0:01:10]} 21. Bg5 {[%clk 0:00:52]}  f6 {[%clk 0:01:09]} 22. Be3 {[%clk 0:00:52]}  f5 {[%clk 0:01:04]} 23. Bg5 {[%clk 0:00:51]}  Rd7 {[%clk 0:01:03]} 24. Nf3 {[%clk 0:00:37]}  Bg7 {[%clk 0:01:01]} 25. Bd3 {[%clk 0:00:20]}  h6 {[%clk 0:00:35]} 26. Bd2 {[%clk 0:00:20]}  Nb7 {[%clk 0:00:32]} 27. h5 {[%clk 0:00:21]}  gxh5 {[%clk 0:00:25]} 28. Bxf5 {[%clk 0:00:21]}  Rde7 {[%clk 0:00:18]} 29. Bg6 {[%clk 0:00:15]}  Rf8 {[%clk 0:00:17]} 30. Bxh5 {[%clk 0:00:09]}  Nd8 {[%clk 0:00:10]} 31. Bf4 {[%clk 0:00:09]}  Rf6 {[%clk 0:00:04]} 32. Nh4 {[%clk 0:00:08]}  Re4 {[%clk 0:00:03]} 33. Kg2 {[%clk 0:00:02]}  Nf7 {[%clk 0:00:02]} 34. Bf3 {[%clk 0:00:01]}  Rxc4 {[%clk 0:00:02]} 35. Rd1 {[%clk 0:00:01]}  Rd4 {[%clk 0:00:02]} 36. Rxd4 {[%clk 0:00:02]}  cxd4 {[%clk 0:00:02]} 37. Rc1 {[%clk 0:00:02]}  Ne5 {[%clk 0:00:00]} 38. Be4 {[%clk 0:00:02]} 1-0


[Site "https://www.chess.com"]

[Event "Titled Tuesday Blitz July 4 Late 2023"]
[White "Ballester Llagaria, Luis Eduardo"]
[Black "Ladan, Nicholas"]
[WhiteFideId "2297620"]
[BlackFideId "30918855"]
[WhiteElo "2594"]
[BlackElo "2461"]
[Result "0-1"]
[Round "6"]
[TimeControl "180+2"]
[Date "2023.07.04"]
[WhiteClock "0:00:22"]
[BlackClock "0:00:06"]
[Board "64"]

1. e4 {[%clk 0:02:58]}  e5 {[%clk 0:03:00]} 2. Nc3 {[%clk 0:02:58]}  Nc6 {[%clk 0:02:59]} 3. Nf3 {[%clk 0:02:59]}  Nf6 {[%clk 0:02:58]} 4. a3 {[%clk 0:02:59]}  g6 {[%clk 0:02:53]} 5. d4 {[%clk 0:02:58]}  exd4 {[%clk 0:02:50]} 6. Nxd4 {[%clk 0:02:59]}  Bg7 {[%clk 0:02:49]} 7. Nxc6 {[%clk 0:02:59]}  dxc6 {[%clk 0:02:45]} 8. Qxd8+ {[%clk 0:02:58]}  Kxd8 {[%clk 0:02:45]} 9. Bf4 {[%clk 0:02:52]}  Be6 {[%clk 0:02:41]} 10. O-O-O+ {[%clk 0:02:51]}  Nd7 {[%clk 0:02:40]} 11. Ne2 {[%clk 0:02:33]}  Rc8 {[%clk 0:02:36]} 12. Nd4 {[%clk 0:02:33]}  Bxd4 {[%clk 0:02:29]} 13. Rxd4 {[%clk 0:02:32]}  c5 {[%clk 0:02:30]} 14. Rd1 {[%clk 0:02:26]}  Ke7 {[%clk 0:02:28]} 15. h4 {[%clk 0:02:21]}  f6 {[%clk 0:02:27]} 16. Be2 {[%clk 0:02:20]}  h5 {[%clk 0:02:22]} 17. Rd2 {[%clk 0:02:11]}  Ne5 {[%clk 0:02:19]} 18. Rhd1 {[%clk 0:02:11]}  Rhd8 {[%clk 0:02:11]} 19. f3 {[%clk 0:02:11]}  Rxd2 {[%clk 0:02:06]} 20. Rxd2 {[%clk 0:02:12]}  Nc4 {[%clk 0:02:05]} 21. Rd3 {[%clk 0:01:53]}  Ne5 {[%clk 0:02:02]} 22. Rd1 {[%clk 0:01:49]}  b6 {[%clk 0:02:02]} 23. b3 {[%clk 0:01:36]}  a5 {[%clk 0:02:02]} 24. a4 {[%clk 0:01:32]}  Nc6 {[%clk 0:02:00]} 25. Kb2 {[%clk 0:01:27]}  Ne5 {[%clk 0:01:57]} 26. Kc3 {[%clk 0:01:22]}  Rf8 {[%clk 0:01:54]} 27. Bh6 {[%clk 0:01:15]}  Rh8 {[%clk 0:01:50]} 28. Be3 {[%clk 0:01:14]}  Bc8 {[%clk 0:01:48]} 29. Bb5 {[%clk 0:01:10]}  Be6 {[%clk 0:01:32]} 30. Bf1 {[%clk 0:01:09]}  Nf7 {[%clk 0:01:31]} 31. Bc4 {[%clk 0:01:08]}  Bxc4 {[%clk 0:01:21]} 32. Kxc4 {[%clk 0:01:09]}  Nd6+ {[%clk 0:01:20]} 33. Kc3 {[%clk 0:01:04]}  Rd8 {[%clk 0:01:18]} 34. Rd2 {[%clk 0:00:50]}  Nf7 {[%clk 0:01:06]} 35. Rxd8 {[%clk 0:00:49]}  Kxd8 {[%clk 0:01:05]} 36. Bf4 {[%clk 0:00:47]}  Kd7 {[%clk 0:01:03]} 37. Kc4 {[%clk 0:00:45]}  Kc6 {[%clk 0:01:03]} 38. c3 {[%clk 0:00:43]}  Nd8 {[%clk 0:00:44]} 39. Kd3 {[%clk 0:00:41]}  Ne6 {[%clk 0:00:40]} 40. Be3 {[%clk 0:00:41]}  b5 {[%clk 0:00:38]} 41. c4 {[%clk 0:00:39]}  b4 {[%clk 0:00:30]} 42. g4 {[%clk 0:00:37]}  Ng7 {[%clk 0:00:26]} 43. g5 {[%clk 0:00:33]}  f5 {[%clk 0:00:23]} 44. Bc1 {[%clk 0:00:27]}  fxe4+ {[%clk 0:00:17]} 45. fxe4 {[%clk 0:00:21]}  Kd6 {[%clk 0:00:17]} 46. Bf4+ {[%clk 0:00:19]}  Kd7 {[%clk 0:00:14]} 47. Be3 {[%clk 0:00:18]}  Ne6 {[%clk 0:00:14]} 48. e5 {[%clk 0:00:17]}  c6 {[%clk 0:00:12]} 49. Ke4 {[%clk 0:00:17]}  Ke7 {[%clk 0:00:13]} 50. Bf2 {[%clk 0:00:17]}  Kd7 {[%clk 0:00:13]} 51. Be3 {[%clk 0:00:17]}  Ke7 {[%clk 0:00:13]} 52. Kf3 {[%clk 0:00:17]}  Kd7 {[%clk 0:00:13]} 53. Bf2 {[%clk 0:00:17]}  Nd4+ {[%clk 0:00:12]} 54. Bxd4 {[%clk 0:00:15]}  cxd4 {[%clk 0:00:13]} 55. c5 {[%clk 0:00:16]}  Ke6 {[%clk 0:00:12]} 56. Ke4 {[%clk 0:00:16]}  d3 {[%clk 0:00:13]} 57. Kxd3 {[%clk 0:00:16]}  Kxe5 {[%clk 0:00:13]} 58. Kc4 {[%clk 0:00:12]}  Kf5 {[%clk 0:00:11]} 59. Kd4 {[%clk 0:00:12]}  Kf4 {[%clk 0:00:10]} 60. Kd3 {[%clk 0:00:11]}  Kg4 {[%clk 0:00:05]} 61. Ke4 {[%clk 0:00:11]}  Kxh4 {[%clk 0:00:06]} 62. Ke5 {[%clk 0:00:12]}  Kxg5 {[%clk 0:00:06]} 63. Kd6 {[%clk 0:00:12]}  h4 {[%clk 0:00:07]} 64. Kxc6 {[%clk 0:00:13]}  h3 {[%clk 0:00:07]} 65. Kb6 {[%clk 0:00:13]}  h2 {[%clk 0:00:08]} 66. c6 {[%clk 0:00:14]}  h1=Q {[%clk 0:00:08]} 67. c7 {[%clk 0:00:14]}  Qc1 {[%clk 0:00:06]} 68. Kb7 {[%clk 0:00:14]}  Kf6 {[%clk 0:00:04]} 69. c8=Q {[%clk 0:00:14]}  Qxc8+ {[%clk 0:00:05]} 70. Kxc8 {[%clk 0:00:15]}  g5 {[%clk 0:00:06]} 71. Kb7 {[%clk 0:00:16]}  g4 {[%clk 0:00:06]} 72. Kb6 {[%clk 0:00:16]}  g3 {[%clk 0:00:07]} 73. Kxa5 {[%clk 0:00:17]}  g2 {[%clk 0:00:08]} 74. Kxb4 {[%clk 0:00:18]}  g1=Q {[%clk 0:00:08]} 75. Kb5 {[%clk 0:00:19]}  Qa7 {[%clk 0:00:08]} 76. b4 {[%clk 0:00:20]}  Ke7 {[%clk 0:00:08]} 77. Kc6 {[%clk 0:00:20]}  Qxa4+ {[%clk 0:00:08]} 78. b5 {[%clk 0:00:21]}  Kd8 {[%clk 0:00:08]} 79. Kb6 {[%clk 0:00:20]}  Kc8 {[%clk 0:00:07]} 80. Kc6 {[%clk 0:00:20]}  Kb8 {[%clk 0:00:07]} 81. Kb6 {[%clk 0:00:21]}  Qh4 {[%clk 0:00:07]} 82. Ka5 {[%clk 0:00:21]}  Kb7 {[%clk 0:00:06]} 83. b6 {[%clk 0:00:22]}  Qf6 {[%clk 0:00:06]} 84. Kb5 {[%clk 0:00:22]}  Qc6+ {[%clk 0:00:06]} 0-1


[Site "https://www.chess.com"]

[Event "Titled Tuesday Blitz July 4 Late 2023"]
[White "Sargsyan, Anna M."]
[Black "Romero Ruscalleda, Josep"]
[WhiteFideId "13308130"]
[BlackFideId "2231859"]
[WhiteElo "2594"]
[BlackElo "2432"]
[Result "0-1"]
[Round "6"]
[TimeControl "180+2"]
[Date "2023.07.04"]
[WhiteClock "0:00:00"]
[BlackClock "0:00:19"]
[Board "65"]

1. d4 {[%clk 0:03:00]}  g6 {[%clk 0:03:00]} 2. c4 {[%clk 0:03:00]}  Bg7 {[%clk 0:02:59]} 3. g3 {[%clk 0:02:59]}  d6 {[%clk 0:02:59]} 4. Bg2 {[%clk 0:02:59]}  Nc6 {[%clk 0:02:59]} 5. e3 {[%clk 0:02:56]}  e5 {[%clk 0:02:58]} 6. Ne2 {[%clk 0:02:56]}  Bg4 {[%clk 0:02:51]} 7. Qa4 {[%clk 0:02:52]}  Bxe2 {[%clk 0:02:36]} 8. Bxc6+ {[%clk 0:02:51]}  bxc6 {[%clk 0:02:36]} 9. Qxc6+ {[%clk 0:02:52]}  Kf8 {[%clk 0:02:36]} 10. Kxe2 {[%clk 0:02:48]}  exd4 {[%clk 0:02:36]} 11. exd4 {[%clk 0:02:46]}  Bxd4 {[%clk 0:02:34]} 12. Rd1 {[%clk 0:02:46]}  Qe8+ {[%clk 0:02:23]} 13. Qxe8+ {[%clk 0:02:45]}  Rxe8+ {[%clk 0:02:24]} 14. Kf3 {[%clk 0:02:42]}  Bf6 {[%clk 0:02:16]} 15. Na3 {[%clk 0:02:37]}  a6 {[%clk 0:02:13]} 16. Nc2 {[%clk 0:02:36]}  Kg7 {[%clk 0:02:12]} 17. Ne3 {[%clk 0:02:33]}  Ne7 {[%clk 0:01:58]} 18. Ng4 {[%clk 0:02:33]}  Nf5 {[%clk 0:01:58]} 19. Nxf6 {[%clk 0:02:32]}  Kxf6 {[%clk 0:01:58]} 20. b3 {[%clk 0:02:28]}  Kg7 {[%clk 0:01:47]} 21. Bb2+ {[%clk 0:02:27]}  f6 {[%clk 0:01:47]} 22. Re1 {[%clk 0:02:26]}  Kf7 {[%clk 0:01:46]} 23. g4 {[%clk 0:02:21]}  Ng7 {[%clk 0:01:45]} 24. h4 {[%clk 0:02:19]}  Rxe1 {[%clk 0:01:42]} 25. Rxe1 {[%clk 0:02:18]}  Ra8 {[%clk 0:01:38]} 26. g5 {[%clk 0:02:13]}  Nh5 {[%clk 0:01:24]} 27. Re3 {[%clk 0:01:41]}  a5 {[%clk 0:01:22]} 28. Kg2 {[%clk 0:01:23]}  Rb8 {[%clk 0:01:00]} 29. gxf6 {[%clk 0:01:21]}  Nf4+ {[%clk 0:00:54]} 30. Kg3 {[%clk 0:01:13]}  Ne6 {[%clk 0:00:54]} 31. Bc3 {[%clk 0:01:02]}  a4 {[%clk 0:00:51]} 32. b4 {[%clk 0:01:01]}  Re8 {[%clk 0:00:46]} 33. Kg4 {[%clk 0:00:52]}  Nf8 {[%clk 0:00:44]} 34. Rxe8 {[%clk 0:00:19]}  Kxe8 {[%clk 0:00:44]} 35. f4 {[%clk 0:00:20]}  Kf7 {[%clk 0:00:39]} 36. f5 {[%clk 0:00:21]}  Nd7 {[%clk 0:00:37]} 37. Kg5 {[%clk 0:00:20]}  c6 {[%clk 0:00:29]} 38. fxg6+ {[%clk 0:00:14]}  hxg6 {[%clk 0:00:29]} 39. Bd4 {[%clk 0:00:14]}  c5 {[%clk 0:00:24]} 40. bxc5 {[%clk 0:00:13]}  dxc5 {[%clk 0:00:25]} 41. Bb2 {[%clk 0:00:07]}  Nb6 {[%clk 0:00:24]} 42. Ba3 {[%clk 0:00:08]}  Nxc4 {[%clk 0:00:21]} 43. Bxc5 {[%clk 0:00:08]}  Nd2 {[%clk 0:00:20]} 44. Bd4 {[%clk 0:00:00]}  Nf3+ {[%clk 0:00:19]} 0-1


[Site "https://www.chess.com"]

[Event "Titled Tuesday Blitz July 4 Late 2023"]
[White "Ovchinnikov, Vsevolod"]
[Black "Bueno, Alfeu Junior Varela"]
[WhiteFideId "24176842"]
[BlackFideId "2108879"]
[WhiteElo "2579"]
[BlackElo "2443"]
[Result "1-0"]
[Round "6"]
[TimeControl "180+2"]
[Date "2023.07.04"]
[WhiteClock "0:00:12"]
[BlackClock "0:00:00"]
[Board "66"]

1. d4 {[%clk 0:03:00]}  e6 {[%clk 0:03:00]} 2. c4 {[%clk 0:03:01]}  f5 {[%clk 0:03:00]} 3. Nf3 {[%clk 0:03:01]}  b6 {[%clk 0:03:00]} 4. g3 {[%clk 0:02:59]}  Bb7 {[%clk 0:03:00]} 5. Bg2 {[%clk 0:03:00]}  Nf6 {[%clk 0:03:01]} 6. O-O {[%clk 0:03:00]}  Be7 {[%clk 0:03:01]} 7. b3 {[%clk 0:02:58]}  O-O {[%clk 0:03:00]} 8. Bb2 {[%clk 0:02:59]}  Qe8 {[%clk 0:02:56]} 9. Nbd2 {[%clk 0:02:51]}  Qh5 {[%clk 0:02:54]} 10. e3 {[%clk 0:02:51]}  Qh6 {[%clk 0:02:52]} 11. Ne5 {[%clk 0:02:47]}  Bxg2 {[%clk 0:02:51]} 12. Kxg2 {[%clk 0:02:48]}  d6 {[%clk 0:02:09]} 13. Nd3 {[%clk 0:02:47]}  Nbd7 {[%clk 0:02:06]} 14. Qe2 {[%clk 0:02:38]}  a5 {[%clk 0:02:00]} 15. e4 {[%clk 0:02:27]}  Nh5 {[%clk 0:01:36]} 16. exf5 {[%clk 0:01:59]}  Rxf5 {[%clk 0:01:35]} 17. Rae1 {[%clk 0:01:57]}  Nf8 {[%clk 0:00:59]} 18. f4 {[%clk 0:01:03]}  Re8 {[%clk 0:00:54]} 19. Ne4 {[%clk 0:00:52]}  Qg6 {[%clk 0:00:49]} 20. Kh1 {[%clk 0:00:45]}  Nf6 {[%clk 0:00:44]} 21. Nxf6+ {[%clk 0:00:37]}  Rxf6 {[%clk 0:00:37]} 22. Qe4 {[%clk 0:00:36]}  Qh5 {[%clk 0:00:28]} 23. Rf2 {[%clk 0:00:32]}  Rh6 {[%clk 0:00:27]} 24. Qf3 {[%clk 0:00:29]}  Qf5 {[%clk 0:00:24]} 25. Qe4 {[%clk 0:00:27]}  Qh5 {[%clk 0:00:21]} 26. Qe2 {[%clk 0:00:21]}  Qg6 {[%clk 0:00:21]} 27. a4 {[%clk 0:00:18]}  Bf6 {[%clk 0:00:20]} 28. Rf3 {[%clk 0:00:17]}  Qg4 {[%clk 0:00:05]} 29. Re3 {[%clk 0:00:16]}  Qf5 {[%clk 0:00:05]} 30. Nf2 {[%clk 0:00:15]}  Qh5 {[%clk 0:00:03]} 31. Qxh5 {[%clk 0:00:14]}  Rxh5 {[%clk 0:00:04]} 32. R1e2 {[%clk 0:00:15]}  c5 {[%clk 0:00:04]} 33. Rd3 {[%clk 0:00:13]}  cxd4 {[%clk 0:00:02]} 34. Bxd4 {[%clk 0:00:14]}  Bxd4 {[%clk 0:00:01]} 35. Rxd4 {[%clk 0:00:15]}  Rd8 {[%clk 0:00:01]} 36. Ne4 {[%clk 0:00:15]}  d5 {[%clk 0:00:01]} 37. Ng5 {[%clk 0:00:15]}  h6 {[%clk 0:00:01]} 38. Nxe6 {[%clk 0:00:13]}  Nxe6 {[%clk 0:00:01]} 39. Rxe6 {[%clk 0:00:13]}  Kf7 {[%clk 0:00:00]} 40. Rxb6 {[%clk 0:00:12]} 1-0


[Site "https://www.chess.com"]

[Event "Titled Tuesday Blitz July 4 Late 2023"]
[White "Sousa, Andre Ventura"]
[Black "Gombocz, Ferenc Jr."]
[WhiteFideId "1917617"]
[BlackFideId "775029"]
[WhiteElo "2572"]
[BlackElo "2407"]
[Result "1-0"]
[Round "6"]
[TimeControl "180+2"]
[Date "2023.07.04"]
[WhiteClock "0:00:56"]
[BlackClock "0:01:11"]
[Board "68"]

1. e4 {[%clk 0:03:00]}  e5 {[%clk 0:02:58]} 2. Nf3 {[%clk 0:03:01]}  Nc6 {[%clk 0:02:58]} 3. Nc3 {[%clk 0:03:00]}  Nf6 {[%clk 0:02:58]} 4. g3 {[%clk 0:03:00]}  d5 {[%clk 0:02:57]} 5. exd5 {[%clk 0:02:59]}  Nxd5 {[%clk 0:02:58]} 6. Bg2 {[%clk 0:02:59]}  Be6 {[%clk 0:02:56]} 7. O-O {[%clk 0:02:53]}  Bd6 {[%clk 0:02:56]} 8. d4 {[%clk 0:02:45]}  Nxc3 {[%clk 0:02:49]} 9. bxc3 {[%clk 0:02:45]}  O-O {[%clk 0:02:36]} 10. d5 {[%clk 0:02:43]}  Bg4 {[%clk 0:02:35]} 11. dxc6 {[%clk 0:02:42]}  e4 {[%clk 0:02:35]} 12. cxb7 {[%clk 0:02:40]}  Rb8 {[%clk 0:02:35]} 13. Bg5 {[%clk 0:02:29]}  Qd7 {[%clk 0:02:20]} 14. Re1 {[%clk 0:02:10]}  Qf5 {[%clk 0:02:11]} 15. Nd4 {[%clk 0:01:40]}  Qxg5 {[%clk 0:02:10]} 16. Qb1 {[%clk 0:01:30]}  c5 {[%clk 0:01:55]} 17. Nc6 {[%clk 0:01:27]}  f5 {[%clk 0:01:48]} 18. Nxb8 {[%clk 0:01:26]}  Rxb8 {[%clk 0:01:48]} 19. Qb3+ {[%clk 0:01:25]}  Kh8 {[%clk 0:01:47]} 20. Qd5 {[%clk 0:01:22]}  Bc7 {[%clk 0:01:31]} 21. Rxe4 {[%clk 0:01:08]}  Rd8 {[%clk 0:01:11]} 22. Rxg4 {[%clk 0:00:56]} 1-0


[Site "https://www.chess.com"]

[Event "Titled Tuesday Blitz July 4 Late 2023"]
[White "Fernandez Siles, Luis"]
[Black "Jovic, Stanoje"]
[WhiteFideId "2209420"]
[BlackFideId "905020"]
[WhiteElo "2391"]
[BlackElo "2571"]
[Result "0-1"]
[Round "6"]
[TimeControl "180+2"]
[Date "2023.07.04"]
[WhiteClock "0:00:00"]
[BlackClock "0:01:14"]
[Board "69"]

1. d4 {[%clk 0:03:00]}  Nf6 {[%clk 0:02:59]} 2. Bg5 {[%clk 0:02:59]}  c5 {[%clk 0:02:58]} 3. d5 {[%clk 0:02:58]}  Qb6 {[%clk 0:02:57]} 4. Nc3 {[%clk 0:02:58]}  Qxb2 {[%clk 0:02:57]} 5. Bd2 {[%clk 0:02:58]}  Qb6 {[%clk 0:02:56]} 6. e4 {[%clk 0:02:58]}  e5 {[%clk 0:02:56]} 7. f4 {[%clk 0:02:57]}  d6 {[%clk 0:02:56]} 8. Nf3 {[%clk 0:02:57]}  Bg4 {[%clk 0:02:55]} 9. Rb1 {[%clk 0:02:50]}  Qc7 {[%clk 0:02:55]} 10. fxe5 {[%clk 0:02:33]}  dxe5 {[%clk 0:02:53]} 11. h3 {[%clk 0:02:15]}  Bh5 {[%clk 0:02:52]} 12. Nb5 {[%clk 0:02:09]}  Qd8 {[%clk 0:02:44]} 13. Bg5 {[%clk 0:01:42]}  a6 {[%clk 0:02:40]} 14. Bxf6 {[%clk 0:01:40]}  gxf6 {[%clk 0:02:35]} 15. g4 {[%clk 0:01:32]}  Bg6 {[%clk 0:02:34]} 16. Nc3 {[%clk 0:01:28]}  b5 {[%clk 0:02:31]} 17. Nh4 {[%clk 0:00:32]}  c4 {[%clk 0:02:26]} 18. Bg2 {[%clk 0:00:22]}  Bc5 {[%clk 0:02:17]} 19. Ne2 {[%clk 0:00:20]}  Qa5+ {[%clk 0:02:11]} 20. Kf1 {[%clk 0:00:19]}  Nd7 {[%clk 0:02:04]} 21. Ng3 {[%clk 0:00:19]}  Qxa2 {[%clk 0:01:56]} 22. Nhf5 {[%clk 0:00:16]}  b4 {[%clk 0:01:47]} 23. d6 {[%clk 0:00:14]}  b3 {[%clk 0:01:41]} 24. Rc1 {[%clk 0:00:10]}  O-O {[%clk 0:01:30]} 25. Qd2 {[%clk 0:00:07]}  Kh8 {[%clk 0:01:14]} 26. Qh6 {[%clk 0:00:00]}  Rg8 {[%clk 0:01:14]} 0-1


[Site "https://www.chess.com"]